fUSD/lending_fUSD_20260621
["ID","MTS","AMOUNT","RATE_DAILY","PERIOD"]
[425951582,1782042679000,-500.0,0.00028493,2]
[425951583,1782042679000,-1477.98,0.00028493,2]
[425951584,1782042679000,-500.0,0.00028493,2]
[425951590,1782042679000,-500.0,0.00028493,2]
[425951585,1782042679000,-537.97,0.00028493,2]
[425951587,1782042679000,-500.0,0.00028493,2]
[425951573,1782042679000,-302247.28196923,0.00028493,2]
[425951586,1782042679000,-1005.32,0.00028493,2]
[425951581,1782042679000,-510.16,0.00028493,2]
[425951574,1782042679000,-501.82455083,0.00028493,2]
[425951569,1782042679000,-500.0,0.00027944,2]
[425951571,1782042679000,-500.0,0.00027945,2]
[425951591,1782042679000,-500.0,0.00028493,2]
[425951556,1782042679000,-500.0,0.00027397,2]
[425951557,1782042679000,-294.99831852,0.00027944,2]
[425951558,1782042679000,-500.0,0.00027944,2]
[425951559,1782042679000,-500.0,0.00027944,2]
[425951560,1782042679000,-290.41172165,0.00027944,2]
[425951563,1782042679000,-500.0,0.00027944,2]
[425951562,1782042679000,-500.0,0.00027944,2]
[425951565,1782042679000,-500.0,0.00027944,2]
[425951564,1782042679000,-500.0,0.00027944,2]
[425951568,1782042679000,-500.0,0.00027944,2]
[425951566,1782042679000,-118.95297457,0.00027944,2]
[425951567,1782042679000,-381.04702543,0.00027944,2]
[425951561,1782042679000,-209.58827835,0.00027944,2]
[425951570,1782042679000,-500.0,0.00027944,2]
[425951572,1782042679000,-500.0,0.00028219,2]
[425951588,1782042679000,-500.0,0.00028493,2]
[425951602,1782042679000,-500.0,0.00028493,2]
[425951595,1782042679000,-500.0,0.00028493,2]
[425951608,1782042679000,-500.0,0.00028493,2]
[425951611,1782042679000,-570.55,0.00028493,2]
[425951614,1782042679000,-500.0,0.00028493,2]
[425951621,1782042679000,-500.0,0.00028493,2]
[425951619,1782042679000,-308.78079043,0.00028493,2]
[425951618,1782042679000,-500.0,0.00028493,2]
[425951613,1782042679000,-535.70656906,0.00028493,2]
[425951622,1782042679000,-862.14,0.00028493,2]
[425951623,1782042679000,-1118.10387786,0.00028493,2]
[425951620,1782042679000,-500.0,0.00028493,2]
[425951624,1782042679000,-1018.9,0.00028493,2]
[425951617,1782042679000,-500.0,0.00028493,2]
[425951626,1782042679000,-500.0,0.00028493,2]
[425951589,1782042679000,-500.0,0.00028493,2]
[425951616,1782042679000,-500.0,0.00028493,2]
[425951609,1782042679000,-500.0,0.00028493,2]
[425951615,1782042679000,-500.0,0.00028493,2]
[425951612,1782042679000,-500.0,0.00028493,2]
[425951593,1782042679000,-1067.39,0.00028493,2]
[425951610,1782042679000,-1141.49,0.00028493,2]
[425951596,1782042679000,-500.0,0.00028493,2]
[425951603,1782042679000,-500.0,0.00028493,2]
[425951597,1782042679000,-500.0,0.00028493,2]
[425951600,1782042679000,-500.0,0.00028493,2]
[425951594,1782042679000,-500.0,0.00028493,2]
[425951592,1782042679000,-500.0,0.00028493,2]
[425951599,1782042679000,-589.9,0.00028493,2]
[425951601,1782042679000,-500.0,0.00028493,2]
[425951598,1782042679000,-781.19,0.00028493,2]
[425951604,1782042679000,-567.38,0.00028493,2]
[425951605,1782042679000,-500.0,0.00028493,2]
[425951606,1782042679000,-951.58,0.00028493,2]
[425951625,1782042679000,-500.0,0.00028493,2]
[425951607,1782042679000,-500.0,0.00028493,2]
[425951661,1782042680000,-500.0,0.00028493,2]
[425951666,1782042680000,-500.0,0.00028493,2]
[425951664,1782042680000,-500.0,0.00028493,2]
[425951663,1782042680000,-622.18,0.00028493,2]
[425951659,1782042680000,-617.68863685,0.00028493,2]
[425951658,1782042680000,-500.0,0.00028493,2]
[425951656,1782042680000,-500.0,0.00028493,2]
[425951660,1782042680000,-522.743824,0.00028493,2]
[425951657,1782042680000,-500.0,0.00028493,2]
[425951662,1782042680000,-500.0,0.00028493,2]
[425951665,1782042680000,-500.0,0.00028493,2]
[425951680,1782042680000,-500.0,0.00028493,2]
[425951668,1782042680000,-4612.74,0.00028493,2]
[425951669,1782042680000,-500.0,0.00028493,2]
[425951671,1782042680000,-500.0,0.00028493,2]
[425951681,1782042680000,-500.0,0.00028493,2]
[425951676,1782042680000,-500.0,0.00028493,2]
[425951673,1782042680000,-605.37,0.00028493,2]
[425951679,1782042680000,-574.45,0.00028493,2]
[425951675,1782042680000,-500.0,0.00028493,2]
[425951672,1782042680000,-500.0,0.00028493,2]
[425951674,1782042680000,-500.0,0.00028493,2]
[425951651,1782042680000,-788.25,0.00028493,2]
[425951667,1782042680000,-500.0,0.00028493,2]
[425951655,1782042680000,-500.0,0.00028493,2]
[425951637,1782042680000,-500.0,0.00028493,2]
[425951652,1782042680000,-500.0,0.00028493,2]
[425951635,1782042680000,-566.31648872,0.00028493,2]
[425951630,1782042680000,-500.0,0.00028493,2]
[425951631,1782042680000,-500.0,0.00028493,2]
[425951628,1782042680000,-500.0,0.00028493,2]
[425951629,1782042680000,-868.1,0.00028493,2]
[425951632,1782042680000,-500.0,0.00028493,2]
[425951634,1782042680000,-500.0,0.00028493,2]
[425951627,1782042680000,-196.2131158,0.00028493,2]
[425951633,1782042680000,-500.0,0.00028493,2]
[425951647,1782042680000,-500.0,0.00028493,2]
[425951677,1782042680000,-944.93,0.00028493,2]
[425951641,1782042680000,-608.21,0.00028493,2]
[425951636,1782042680000,-500.0,0.00028493,2]
[425951645,1782042680000,-500.0,0.00028493,2]
[425951643,1782042680000,-500.0,0.00028493,2]
[425951646,1782042680000,-500.0,0.00028493,2]
[425951639,1782042680000,-500.0,0.00028493,2]
[425951638,1782042680000,-500.0,0.00028493,2]
[425951640,1782042680000,-500.0,0.00028493,2]
[425951642,1782042680000,-500.0,0.00028493,2]
[425951644,1782042680000,-583.76,0.00028493,2]
[425951649,1782042680000,-500.0,0.00028493,2]
[425951648,1782042680000,-500.0,0.00028493,2]
[425951653,1782042680000,-500.0,0.00028493,2]
[425951650,1782042680000,-500.0,0.00028493,2]
[425951654,1782042680000,-945.92,0.00028493,2]
[425951678,1782042680000,-500.0,0.00028493,2]
[425951670,1782042680000,-791.12,0.00028493,2]
[425951686,1782042680000,-500.0,0.00028493,2]
[425951710,1782042680000,-1108.64,0.00028493,2]
[425951708,1782042680000,-568.07,0.00028493,2]
[425951713,1782042680000,-500.0,0.00028493,2]
[425951712,1782042680000,-500.0,0.00028493,2]
[425951718,1782042680000,-729.73,0.00028493,2]
[425951719,1782042680000,-546.86,0.00028493,2]
[425951722,1782042680000,-500.0,0.00028493,2]
[425951723,1782042680000,-511.44137,0.00028493,2]
[425951717,1782042680000,-500.0,0.00028493,2]
[425951721,1782042680000,-532.29,0.00028493,2]
[425951720,1782042680000,-577.43,0.00028493,2]
[425951724,1782042680000,-500.0,0.00028493,2]
[425951735,1782042680000,-367.84111927,0.00028493,2]
[425951725,1782042680000,-500.0,0.00028493,2]
[425951736,1782042680000,-500.0,0.00028493,2]
[425951728,1782042680000,-507.97295889,0.00028493,2]
[425951726,1782042680000,-500.0,0.00028493,2]
[425951730,1782042680000,-500.0,0.00028493,2]
[425951731,1782042680000,-500.0,0.00028493,2]
[425951727,1782042680000,-1259.13,0.00028493,2]
[425951729,1782042680000,-500.0,0.00028493,2]
[425951733,1782042680000,-500.0,0.00028493,2]
[425951732,1782042680000,-716.64,0.00028493,2]
[425951734,1782042680000,-500.0,0.00028493,2]
[425951688,1782042680000,-500.0,0.00028493,2]
[425951714,1782042680000,-4311.16,0.00028493,2]
[425951709,1782042680000,-500.0,0.00028493,2]
[425951737,1782042680000,-1012.47,0.00028493,2]
[425951707,1782042680000,-577.07,0.00028493,2]
[425951711,1782042680000,-1195.08,0.00028493,2]
[425951684,1782042680000,-500.0,0.00028493,2]
[425951685,1782042680000,-534.17,0.00028493,2]
[425951682,1782042680000,-5124.46,0.00028493,2]
[425951689,1782042680000,-803.05,0.00028493,2]
[425951690,1782042680000,-500.0,0.00028493,2]
[425951691,1782042680000,-500.0,0.00028493,2]
[425951687,1782042680000,-526.22,0.00028493,2]
[425951692,1782042680000,-500.0,0.00028493,2]
[425951694,1782042680000,-758.6,0.00028493,2]
[425951697,1782042680000,-500.0,0.00028493,2]
[425951695,1782042680000,-797.27,0.00028493,2]
[425951683,1782042680000,-500.0,0.00028493,2]
[425951693,1782042680000,-500.0,0.00028493,2]
[425951715,1782042680000,-156.37377183,0.00028493,2]
[425951716,1782042680000,-630.45,0.00028493,2]
[425951706,1782042680000,-2112.512751,0.00028493,7]
[425951704,1782042680000,-500.0,0.00028493,2]
[425951702,1782042680000,-2112.512751,0.00028493,7]
[425951700,1782042680000,-2112.512751,0.00028493,7]
[425951703,1782042680000,-500.0,0.00028493,2]
[425951699,1782042680000,-500.0,0.00028493,2]
[425951698,1782042680000,-500.0,0.00028493,2]
[425951696,1782042680000,-618.92,0.00028493,2]
[425951705,1782042680000,-500.0,0.00028493,2]
[425951701,1782042680000,-2112.512751,0.00028493,7]
[425951783,1782042681000,-500.0,0.00028493,2]
[425951772,1782042681000,-500.0,0.00028493,2]
[425951774,1782042681000,-644.07,0.00028493,2]
[425951773,1782042681000,-500.0,0.00028493,2]
[425951761,1782042681000,-500.0,0.00028493,2]
[425951768,1782042681000,-500.0,0.00028493,2]
[425951765,1782042681000,-500.0,0.00028493,2]
[425951771,1782042681000,-500.0,0.00028493,2]
[425951767,1782042681000,-500.0,0.00028493,2]
[425951770,1782042681000,-1664.89,0.00028493,2]
[425951775,1782042681000,-500.0,0.00028493,2]
[425951777,1782042681000,-500.0,0.00028493,2]
[425951780,1782042681000,-762.03,0.00028493,2]
[425951778,1782042681000,-500.0,0.00028493,2]
[425951782,1782042681000,-500.0,0.00028493,2]
[425951781,1782042681000,-807.2,0.00028493,2]
[425951784,1782042681000,-500.0,0.00028493,2]
[425951786,1782042681000,-500.0,0.00028493,2]
[425951787,1782042681000,-500.0,0.00028493,2]
[425951785,1782042681000,-921.72,0.00028493,2]
[425951793,1782042681000,-772.47,0.00028493,2]
[425951788,1782042681000,-883.2,0.00028493,2]
[425951762,1782042681000,-500.0,0.00028493,2]
[425951779,1782042681000,-500.0,0.00028493,2]
[425951769,1782042681000,-823.97,0.00028493,2]
[425951757,1782042681000,-500.0,0.00028493,2]
[425951763,1782042681000,-998.03,0.00028493,2]
[425951792,1782042681000,-500.0,0.00028493,2]
[425951741,1782042681000,-500.0,0.00028493,2]
[425951744,1782042681000,-500.0,0.00028493,2]
[425951742,1782042681000,-500.0,0.00028493,2]
[425951746,1782042681000,-500.0,0.00028493,2]
[425951743,1782042681000,-776.23,0.00028493,2]
[425951739,1782042681000,-500.0,0.00028493,2]
[425951738,1782042681000,-500.0,0.00028493,2]
[425951740,1782042681000,-500.0,0.00028493,2]
[425951745,1782042681000,-3388.86,0.00028493,2]
[425951747,1782042681000,-500.0,0.00028493,2]
[425951766,1782042681000,-500.0,0.00028493,2]
[425951748,1782042681000,-500.0,0.00028493,2]
[425951756,1782042681000,-651.77,0.00028493,2]
[425951758,1782042681000,-151.0,0.00028493,7]
[425951750,1782042681000,-603.19,0.00028493,2]
[425951749,1782042681000,-500.0,0.00028493,2]
[425951753,1782042681000,-500.0,0.00028493,2]
[425951752,1782042681000,-610.42,0.00028493,2]
[425951751,1782042681000,-500.0,0.00028493,2]
[425951755,1782042681000,-500.0,0.00028493,2]
[425951754,1782042681000,-513.61,0.00028493,2]
[425951760,1782042681000,-500.0,0.00028493,2]
[425951764,1782042681000,-500.0,0.00028493,2]
[425951759,1782042681000,-500.0,0.00028493,2]
[425951789,1782042681000,-567.87,0.00028493,2]
[425951776,1782042681000,-500.0,0.00028493,2]
[425951794,1782042681000,-500.0,0.00028493,2]
[425951823,1782042681000,-500.0,0.00028493,2]
[425951822,1782042681000,-500.0,0.00028493,2]
[425951824,1782042681000,-494.55648082,0.00028493,2]
[425951825,1782042681000,-500.0,0.00028493,2]
[425951827,1782042681000,-491.42816863,0.00028493,2]
[425951828,1782042681000,-500.0,0.00028493,2]
[425951826,1782042681000,-500.0,0.00028493,2]
[425951829,1782042681000,-500.0,0.00028493,2]
[425951830,1782042681000,-717.28,0.00028493,2]
[425951833,1782042681000,-500.0,0.00028493,2]
[425951834,1782042681000,-500.0,0.00028493,2]
[425951821,1782042681000,-500.0,0.00028493,2]
[425951831,1782042681000,-512.19,0.00028493,2]
[425951836,1782042681000,-1014.39,0.00028493,2]
[425951846,1782042681000,-909.56,0.00028493,2]
[425951835,1782042681000,-348.70208262,0.00028493,2]
[425951838,1782042681000,-32804.885579,0.00028493,2]
[425951840,1782042681000,-1485.29,0.00028493,2]
[425951841,1782042681000,-500.0,0.00028493,2]
[425951837,1782042681000,-1372.89,0.00028493,2]
[425951844,1782042681000,-529.79,0.00028493,2]
[425951843,1782042681000,-170.260492,0.00028493,2]
[425951842,1782042681000,-500.0,0.00028493,2]
[425951839,1782042681000,-996.79,0.00028493,2]
[425951832,1782042681000,-500.0,0.00028493,2]
[425951819,1782042681000,-500.0,0.00028493,2]
[425951791,1782042681000,-500.0,0.00028493,2]
[425951812,1782042681000,-500.0,0.00028493,2]
[425951820,1782042681000,-1240.33,0.00028493,2]
[425951790,1782042681000,-500.0,0.00028493,2]
[425951796,1782042681000,-500.0,0.00028493,2]
[425951807,1782042681000,-500.0,0.00028493,2]
[425951806,1782042681000,-500.0,0.00028493,2]
[425951795,1782042681000,-500.0,0.00028493,2]
[425951800,1782042681000,-500.0,0.00028493,2]
[425951799,1782042681000,-500.0,0.00028493,2]
[425951797,1782042681000,-500.0,0.00028493,2]
[425951801,1782042681000,-500.0,0.00028493,2]
[425951803,1782042681000,-523.31,0.00028493,2]
[425951845,1782042681000,-835.09,0.00028493,2]
[425951798,1782042681000,-500.0,0.00028493,2]
[425951805,1782042681000,-161.00287,0.00028493,2]
[425951802,1782042681000,-500.0,0.00028493,2]
[425951814,1782042681000,-506.46,0.00028493,2]
[425951811,1782042681000,-500.0,0.00028493,2]
[425951810,1782042681000,-500.0,0.00028493,2]
[425951816,1782042681000,-528.51,0.00028493,2]
[425951815,1782042681000,-661.2,0.00028493,2]
[425951813,1782042681000,-500.0,0.00028493,2]
[425951818,1782042681000,-500.0,0.00028493,2]
[425951817,1782042681000,-500.0,0.00028493,2]
[425951808,1782042681000,-1317.73,0.00028493,2]
[425951804,1782042681000,-500.0,0.00028493,2]
[425951809,1782042681000,-629.68,0.00028493,2]
[425951883,1782042682000,-314.41546524,0.00028493,2]
[425951882,1782042682000,-500.0,0.00028493,2]
[425951880,1782042682000,-500.0,0.00028493,2]
[425951884,1782042682000,-1067.51,0.00028493,2]
[425951878,1782042682000,-1267.73,0.00028493,2]
[425951891,1782042682000,-1956.1,0.00028493,2]
[425951881,1782042682000,-1452.97,0.00028493,2]
[425951879,1782042682000,-500.0,0.00028493,2]
[425951876,1782042682000,-500.0,0.00028493,2]
[425951887,1782042682000,-500.0,0.00028493,2]
[425951892,1782042682000,-4177.04,0.00028493,2]
[425951889,1782042682000,-500.0,0.00028493,2]
[425951903,1782042682000,-500.0,0.00028493,2]
[425951886,1782042682000,-500.0,0.00028493,2]
[425951885,1782042682000,-500.0,0.00028493,2]
[425951888,1782042682000,-670.9,0.00028493,2]
[425951895,1782042682000,-500.0,0.00028493,2]
[425951893,1782042682000,-500.0,0.00028493,2]
[425951896,1782042682000,-500.0,0.00028493,2]
[425951894,1782042682000,-500.0,0.00028493,2]
[425951898,1782042682000,-500.0,0.00028493,2]
[425951897,1782042682000,-500.0,0.00028493,2]
[425951902,1782042682000,-1203.84,0.00028493,2]
[425951899,1782042682000,-500.0,0.00028493,2]
[425951872,1782042682000,-500.0,0.00028493,2]
[425951890,1782042682000,-500.0,0.00028493,2]
[425951877,1782042682000,-4283.71,0.00028493,2]
[425951864,1782042682000,-500.0,0.00028493,2]
[425951873,1782042682000,-500.0,0.00028493,2]
[425951847,1782042682000,-500.0,0.00028493,2]
[425951901,1782042682000,-4138.94,0.00028493,2]
[425951849,1782042682000,-500.0,0.00028493,2]
[425951854,1782042682000,-500.0,0.00028493,2]
[425951851,1782042682000,-500.0,0.00028493,2]
[425951848,1782042682000,-500.0,0.00028493,2]
[425951853,1782042682000,-500.0,0.00028493,2]
[425951856,1782042682000,-500.0,0.00028493,2]
[425951855,1782042682000,-500.0,0.00028493,2]
[425951852,1782042682000,-944.4,0.00028493,2]
[425951857,1782042682000,-500.0,0.00028493,2]
[425951858,1782042682000,-2816.73,0.00028493,2]
[425951859,1782042682000,-500.0,0.00028493,2]
[425951861,1782042682000,-500.0,0.00028493,2]
[425951863,1782042682000,-500.0,0.00028493,2]
[425951862,1782042682000,-500.0,0.00028493,2]
[425951860,1782042682000,-500.0,0.00028493,2]
[425951865,1782042682000,-1574.38,0.00028493,2]
[425951868,1782042682000,-613.12211302,0.00028493,2]
[425951866,1782042682000,-500.0,0.00028493,2]
[425951867,1782042682000,-614.69,0.00028493,2]
[425951869,1782042682000,-500.0,0.00028493,2]
[425951871,1782042682000,-520.1,0.00028493,2]
[425951870,1782042682000,-529.97,0.00028493,2]
[425951874,1782042682000,-538.04,0.00028493,2]
[425951875,1782042682000,-500.0,0.00028493,2]
[425951850,1782042682000,-533.74,0.00028493,2]
[425951900,1782042682000,-643.81,0.00028493,2]
[425951915,1782042682000,-3754.21,0.00028493,2]
[425951935,1782042682000,-500.0,0.00028493,2]
[425951933,1782042682000,-500.0,0.00028493,2]
[425951938,1782042682000,-554.38,0.00028493,2]
[425951940,1782042682000,-500.0,0.00028493,2]
[425951943,1782042682000,-586.27,0.00028493,2]
[425951947,1782042682000,-500.0,0.00028493,2]
[425951948,1782042682000,-3536.55,0.00028493,2]
[425951942,1782042682000,-3663.8,0.00028493,2]
[425951945,1782042682000,-500.0,0.00028493,2]
[425951944,1782042682000,-797.89,0.00028493,2]
[425951941,1782042682000,-500.0,0.00028493,2]
[425951949,1782042682000,-500.0,0.00028493,2]
[425951939,1782042682000,-576.5,0.00028493,2]
[425951946,1782042682000,-691.32,0.00028493,2]
[425951951,1782042682000,-1741.07,0.00028493,2]
[425951950,1782042682000,-1039.45,0.00028493,2]
[425951952,1782042682000,-500.0,0.00028493,2]
[425951953,1782042682000,-643.32,0.00028493,2]
[425951958,1782042682000,-500.0,0.00028493,2]
[425951954,1782042682000,-500.0,0.00028493,2]
[425951959,1782042682000,-500.0,0.00028493,2]
[425951955,1782042682000,-500.0,0.00028493,2]
[425951956,1782042682000,-500.0,0.00028493,2]
[425951957,1782042682000,-500.0,0.00028493,2]
[425951905,1782042682000,-1105.75,0.00028493,2]
[425951934,1782042682000,-500.0,0.00028493,2]
[425951936,1782042682000,-619.54,0.00028493,2]
[425951960,1782042682000,-500.0,0.00028493,2]
[425951929,1782042682000,-5414.02,0.00028493,2]
[425951932,1782042682000,-500.0,0.00028493,2]
[425951911,1782042682000,-500.0,0.00028493,2]
[425951906,1782042682000,-1505.18,0.00028493,2]
[425951909,1782042682000,-663.72,0.00028493,2]
[425951910,1782042682000,-500.0,0.00028493,2]
[425951914,1782042682000,-500.0,0.00028493,2]
[425951907,1782042682000,-242.61854967,0.00028493,2]
[425951908,1782042682000,-4234.06,0.00028493,2]
[425951913,1782042682000,-583.38,0.00028493,2]
[425951912,1782042682000,-741.98,0.00028493,2]
[425951918,1782042682000,-554.94,0.00028493,2]
[425951925,1782042682000,-500.0,0.00028493,2]
[425951924,1782042682000,-500.0,0.00028493,2]
[425951904,1782042682000,-936.18,0.00028493,2]
[425951926,1782042682000,-500.0,0.00028493,2]
[425951922,1782042682000,-1074.6,0.00028493,2]
[425951931,1782042682000,-500.0,0.00028493,2]
[425951937,1782042682000,-500.0,0.00028493,2]
[425951927,1782042682000,-500.0,0.00028493,2]
[425951928,1782042682000,-4223.82,0.00028493,2]
[425951930,1782042682000,-500.0,0.00028493,2]
[425951919,1782042682000,-500.0,0.00028493,2]
[425951917,1782042682000,-500.0,0.00028493,2]
[425951920,1782042682000,-500.0,0.00028493,2]
[425951916,1782042682000,-500.0,0.00028493,2]
[425951921,1782042682000,-500.0,0.00028493,2]
[425951923,1782042682000,-6119.57,0.00028493,2]
[425951995,1782042683000,-551.8,0.00028493,2]
[425951999,1782042683000,-500.0,0.00028493,2]
[425951998,1782042683000,-4255.92,0.00028493,2]
[425952006,1782042683000,-768.97,0.00028493,2]
[425951994,1782042683000,-5243.54,0.00028493,2]
[425951990,1782042683000,-500.0,0.00028493,2]
[425951985,1782042683000,-500.0,0.00028493,2]
[425951992,1782042683000,-500.0,0.00028493,2]
[425952003,1782042683000,-8765.19,0.00028493,2]
[425951997,1782042683000,-500.0,0.00028493,2]
[425951988,1782042683000,-1007.37,0.00028493,2]
[425952001,1782042683000,-637.65,0.00028493,2]
[425952004,1782042683000,-2815.05,0.00028493,2]
[425952000,1782042683000,-500.0,0.00028493,2]
[425952005,1782042683000,-4969.53,0.00028493,2]
[425952002,1782042683000,-1490.2,0.00028493,2]
[425952009,1782042683000,-500.0,0.00028493,2]
[425952007,1782042683000,-500.0,0.00028493,2]
[425952011,1782042683000,-10005.09,0.00028493,2]
[425952010,1782042683000,-4860.35,0.00028493,2]
[425952008,1782042683000,-495.60117996,0.00028493,2]
[425952012,1782042683000,-500.0,0.00028493,2]
[425952014,1782042683000,-719.64,0.00028493,2]
[425951993,1782042683000,-535.43,0.00028493,2]
[425951996,1782042683000,-500.0,0.00028493,2]
[425951991,1782042683000,-1343.23,0.00028493,2]
[425951974,1782042683000,-500.0,0.00028493,2]
[425951983,1782042683000,-2562.49,0.00028493,2]
[425951961,1782042683000,-500.0,0.00028493,2]
[425951962,1782042683000,-500.0,0.00028493,2]
[425951964,1782042683000,-560.51,0.00028493,2]
[425951968,1782042683000,-500.0,0.00028493,2]
[425951969,1782042683000,-500.0,0.00028493,2]
[425951967,1782042683000,-779.95,0.00028493,2]
[425951965,1782042683000,-500.0,0.00028493,2]
[425951966,1782042683000,-536.39360677,0.00028493,2]
[425951971,1782042683000,-500.0,0.00028493,2]
[425951963,1782042683000,-254.35337087,0.00028493,2]
[425951970,1782042683000,-500.0,0.00028493,2]
[425951987,1782042683000,-639.45,0.00028493,2]
[425951975,1782042683000,-500.0,0.00028493,2]
[425951973,1782042683000,-500.0,0.00028493,2]
[425951977,1782042683000,-2183.7,0.00028493,2]
[425951976,1782042683000,-509.99419187,0.00028493,2]
[425951981,1782042683000,-1045.79,0.00028493,2]
[425951979,1782042683000,-6102.89,0.00028493,2]
[425951982,1782042683000,-500.0,0.00028493,2]
[425951980,1782042683000,-500.0,0.00028493,2]
[425951978,1782042683000,-475.71626045,0.00028493,2]
[425951984,1782042683000,-500.0,0.00028493,2]
[425951986,1782042683000,-500.0,0.00028493,2]
[425951989,1782042683000,-566.7431602,0.00028493,2]
[425951972,1782042683000,-500.0,0.00028493,2]
[425952013,1782042683000,-500.0,0.00028493,2]
[425952016,1782042683000,-6716.5,0.00028493,2]
[425952022,1782042683000,-500.0,0.00028493,2]
[425952046,1782042683000,-3659.51,0.00028493,2]
[425952045,1782042683000,-500.0,0.00028493,2]
[425952048,1782042683000,-500.0,0.00028493,2]
[425952047,1782042683000,-582.57,0.00028493,2]
[425952050,1782042683000,-500.0,0.00028493,2]
[425952053,1782042683000,-500.0,0.00028493,2]
[425952061,1782042683000,-500.0,0.00028493,2]
[425952060,1782042683000,-500.0,0.00028493,2]
[425952051,1782042683000,-500.0,0.00028493,2]
[425952055,1782042683000,-608.75,0.00028493,2]
[425952056,1782042683000,-500.0,0.00028493,2]
[425952041,1782042683000,-1436.960791,0.00028493,7]
[425952054,1782042683000,-4874.19,0.00028493,2]
[425952059,1782042683000,-500.0,0.00028493,2]
[425952057,1782042683000,-500.0,0.00028493,2]
[425952063,1782042683000,-500.0,0.00028493,2]
[425952064,1782042683000,-573.05,0.00028493,2]
[425952062,1782042683000,-1605.98,0.00028493,2]
[425952065,1782042683000,-1000.0,0.00028493,2]
[425952066,1782042683000,-1355.35,0.00028493,2]
[425952067,1782042683000,-604.46,0.00028493,2]
[425952068,1782042683000,-500.0,0.00028493,2]
[425952069,1782042683000,-535.30150108,0.00028493,2]
[425952021,1782042683000,-500.0,0.00028493,2]
[425952058,1782042683000,-551.78,0.00028493,2]
[425952038,1782042683000,-1436.960783,0.00028493,7]
[425952052,1782042683000,-500.0,0.00028493,2]
[425952040,1782042683000,-859.51,0.00028493,2]
[425952018,1782042683000,-500.0,0.00028493,2]
[425952043,1782042683000,-506.81,0.00028493,2]
[425952017,1782042683000,-5262.06,0.00028493,2]
[425952026,1782042683000,-1064.87,0.00028493,2]
[425952020,1782042683000,-4282.25,0.00028493,2]
[425952023,1782042683000,-500.0,0.00028493,2]
[425952015,1782042683000,-500.0,0.00028493,2]
[425952019,1782042683000,-500.0,0.00028493,2]
[425952025,1782042683000,-4526.61,0.00028493,2]
[425952027,1782042683000,-622.17253193,0.00028493,2]
[425952029,1782042683000,-500.0,0.00028493,2]
[425952030,1782042683000,-574.64,0.00028493,2]
[425952024,1782042683000,-500.0,0.00028493,2]
[425952031,1782042683000,-5276.66,0.00028493,2]
[425952042,1782042683000,-4721.85,0.00028493,2]
[425952028,1782042683000,-500.0,0.00028493,2]
[425952044,1782042683000,-503.69,0.00028493,2]